bitfinex-derivatives/quotes_SOLF0:USTF0_20240924
["timestamp","ask_amount","ask_price","bid_price","bid_amount"]
[1727207508581,23.39,147.83,147.73,23.39]
[1727207509182,3.3828,147.81,147.77,3.3836]
[1727207510177,3.3828,147.81,147.78,3.3835]
[1727207510773,3.3827,147.82,147.79,3.3832]
[1727207510978,90.13426197,147.88,147.75,23.39]
[1727207511174,90.13426197,147.88,147.8,3.3829]
[1727207511379,90.13426197,147.88,147.75,23.39]
[1727207511783,23.39,147.86,147.8,3.383]
[1727207512182,3.3823,147.84,147.75,23.39]
[1727207513084,3.3823,147.84,147.8,3.3829]
[1727207513285,23.39,147.86,147.75,23.39]
[1727207513594,90.13426197,147.88,147.82,3.3826]
[1727207513890,3.3817,147.87,147.75,23.39]
[1727207514083,26.84763056,147.89,147.75,23.39]
[1727207514487,3.3819,147.86,147.75,23.39]
[1727207514686,26.84763056,147.89,147.75,23.39]
[1727207514890,23.39,147.86,147.75,23.39]
[1727207515191,3.3821,147.85,147.75,23.39]
[1727207515789,3.3821,147.85,147.81,3.3827]
[1727207517988,23.39,147.86,147.8,3.3829]
[1727207517989,3.3822,147.84,147.8,3.3829]
[1727207518184,23.39,147.86,147.8,3.3829]
[1727207518391,23.39,147.86,147.75,23.39]
[1727207518587,18.0025,147.83,147.74,14.62]
[1727207518988,14.62,147.83,147.74,14.62]
[1727207519187,14.62,147.83,147.8,3.383]
[1727207519793,14.62,147.85,147.82,3.3826]
[1727207519982,14.62,147.87,147.82,3.3826]
[1727207520387,3.3818,147.86,147.82,3.3826]
[1727207520695,14.62,147.87,147.78,15.9883]
[1727207520894,14.62,147.85,147.78,1.3683]
[1727207521196,3.3823,147.84,147.78,1.3683]
[1727207522001,18.0021,147.85,147.81,3.3828]
[1727207522894,3.3817,147.86,147.78,15.9883]
[1727207523598,18.0015,147.87,147.78,15.9883]
[1727207523791,14.62,147.87,147.78,15.9883]
[1727207523999,14.62,147.87,147.83,3.3823]
[1727207524184,18.0015,147.87,147.8,14.62]
[1727207524387,14.62,147.89,147.8,14.62]
[1727207524587,14.62,147.89,147.78,4.83497489]
[1727207524588,3.3808,147.9,147.83,14.62]
[1727207524992,90.11230597,147.91,147.84,4.0693]
[1727207525196,104.73230597,147.91,147.84,4.0693]
[1727207525393,14.62,147.91,147.87,3.3814]
[1727207525997,3.3809,147.9,147.86,3.3816]
[1727207526695,18.0006,147.91,147.87,3.3815]
[1727207527802,3.3808,147.9,147.87,3.3815]
[1727207528096,14.62,147.91,147.84,4.0693]
[1727207528291,14.62,147.89,147.84,4.0693]
[1727207528685,18.0011,147.89,147.86,3.3817]
[1727207529090,14.62,147.89,147.81,14.62]
[1727207529302,14.62,147.89,147.83,3.3822]
[1727207529595,14.62,147.89,147.79,18.9022]
[1727207529793,3.3816,147.87,147.83,3.3822]
[1727207529991,3.3816,147.87,147.79,18.9022]
[1727207530394,14.62,147.85,147.79,4.2822]
[1727207530697,14.62,147.89,147.79,18.9022]
[1727207531296,14.62,147.9,147.79,4.2822]
[1727207531498,3.3806,147.91,147.87,3.3814]
[1727207532496,3.3808,147.9,147.83,14.62]
[1727207532898,14.62,147.92,147.83,14.62]
[1727207533591,3.3807,147.91,147.83,14.62]
[1727207534806,14.62,147.92,147.83,14.62]
[1727207535394,14.62,147.9,147.81,14.62]
[1727207535597,14.62,147.88,147.79,18.9022]
[1727207536103,3.3815,147.87,147.84,3.3821]
[1727207536297,14.62,147.88,147.79,18.9022]
[1727207536501,3.3816,147.87,147.79,18.9022]
[1727207536692,14.62,147.88,147.79,18.9022]
[1727207537302,18.0014,147.88,147.84,3.382]
[1727207538199,14.62,147.85,147.79,4.2822]
[1727207538700,3.3823,147.84,147.8,3.3828]
[1727207538900,14.62,147.85,147.79,4.2822]
[1727207539204,14.62,147.86,147.79,4.2822]
[1727207539399,14.62,147.88,147.79,18.9022]
[1727207539897,14.62,147.88,147.85,3.3818]
[1727207540904,3.3811,147.89,147.85,3.3818]
[1727207541506,18.0009,147.9,147.86,3.3816]
[1727207541707,3.3809,147.9,147.83,14.62]
[1727207542300,14.62,147.92,147.83,14.62]
[1727207542506,14.62,147.92,147.87,3.3813]
[1727207542708,14.62,147.92,147.83,14.62]
[1727207542907,3.3806,147.91,147.83,14.62]
[1727207543203,3.3806,147.91,147.87,3.3813]
[1727207544703,3.3804,147.92,147.89,3.3809]
[1727207544900,14.62,147.92,147.83,14.62]
[1727207545104,14.62,147.92,147.87,3.3814]
[1727207545308,14.62,147.9,147.81,14.62]
[1727207545508,14.62,147.88,147.79,18.9022]
[1727207546406,14.62,147.9,147.85,3.3819]
[1727207546821,14.62,147.9,147.81,14.62]
[1727207547108,3.3814,147.88,147.84,3.382]
[1727207549205,14.62,147.92,147.83,14.62]
[1727207550009,3.3809,147.9,147.87,3.3814]
[1727207550405,14.62,147.93,147.88,3.381]
[1727207551308,14.62,147.93,147.87,3.3814]
[1727207551511,14.62,147.91,147.87,3.3814]
[1727207551906,3.3808,147.9,147.87,3.3814]
[1727207552106,14.62,147.91,147.87,3.3814]
[1727207552517,3.381,147.89,147.86,3.3817]
[1727207553414,3.3809,147.9,147.87,3.3815]
[1727207553616,90.08577902,147.95,147.86,14.62]
[1727207553912,104.70577902,147.95,147.89,3.3808]
[1727207554117,104.70577902,147.95,147.87,2.6601]
[1727207554317,90.08577902,147.95,147.88,14.62]
[1727207554520,3.3797,147.95,147.88,14.62]
[1727207555614,3.3797,147.95,147.91,3.3803]
[1727207556023,3.3795,147.96,147.92,3.3803]
[1727207556211,14.62,147.99,147.9,14.62]
[1727207557417,3.3792,147.97,147.9,14.62]
[1727207557817,14.62,147.99,147.9,14.62]
[1727207558015,3.3792,147.98,147.94,3.3797]
[1727207558215,14.62,147.99,147.9,14.62]
[1727207559511,3.3794,147.96,147.93,3.38]
[1727207559917,3.3796,147.95,147.92,3.3801]
[1727207560518,3.3799,147.94,147.91,3.3805]
[1727207561213,3.3797,147.95,147.91,3.3805]
[1727207562714,3.3795,147.96,147.92,3.3803]
[1727207562915,3.3795,147.96,147.9,14.62]
[1727207563117,14.62,148.0,147.92,14.62]
[1727207563422,3.3792,147.98,147.94,3.3798]
[1727207563823,3.3792,147.98,147.95,3.3796]
[1727207564426,3.3792,147.97,147.95,3.3796]
[1727207565316,3.3792,147.97,147.94,3.3798]
[1727207565517,14.62,147.98,147.93,2.7442]
[1727207566030,14.62,147.98,147.94,3.3798]
[1727207566423,3.3794,147.97,147.94,3.3798]
[1727207566725,14.62,147.98,147.94,3.3798]
[1727207567124,14.62,147.96,147.88,14.62]
[1727207567314,14.62,147.96,147.88,17.4029]
[1727207567513,14.62,147.94,147.88,2.7829]
[1727207568226,3.3799,147.94,147.88,2.7829]
[1727207568429,14.62,147.98,147.88,17.4029]
[1727207569433,14.62,147.98,147.92,3.3802]
[1727207569730,14.62,147.98,147.9,14.62]
[1727207569920,14.62,148.0,147.9,14.62]
[1727207570126,14.62,148.0,147.93,3.3799]
[1727207570325,3.3793,147.97,147.9,14.62]
[1727207570926,3.3793,147.97,147.94,3.3797]
[1727207571321,3.3794,147.96,147.94,3.3797]
[1727207571527,3.3794,147.96,147.93,3.38]
[1727207572233,14.62,148.03,147.91,14.62]
[1727207572423,14.62,148.03,147.93,14.62]
[1727207572624,3.3787,148.0,147.94,2.8009]
[1727207573537,3.3787,148.0,147.96,3.3792]
[1727207574527,3.3787,148.0,147.97,3.3792]
[1727207575939,14.62,148.03,147.94,2.8009]
[1727207576141,14.62,148.0,147.94,2.8009]
[1727207576640,14.62,148.02,147.94,2.8009]
[1727207577029,3.3784,148.01,147.97,3.379]
[1727207577334,3.3784,148.01,147.94,2.8009]
[1727207577527,3.3784,148.01,147.97,3.379]
[1727207577930,3.3781,148.02,147.95,14.62]
[1727207578132,81.14,148.08,147.95,14.62]
[1727207578329,3.3779,148.03,147.95,14.62]
[1727207579233,3.3777,148.04,147.94,6.19474719]
[1727207579429,14.62,148.05,147.97,14.62]
[1727207579632,81.14,148.16,147.99,14.62]
[1727207579833,81.14,148.16,148.0,3.979]
[1727207579834,90.10859102,148.12,148.0,3.979]
[1727207580038,14.62,148.08,148.0,3.979]
[1727207580543,14.62,148.07,148.0,3.979]
[1727207580840,3.3775,148.05,148.01,3.3782]
[1727207581241,14.62,148.08,148.0,3.979]
[1727207581443,14.62,148.06,148.0,2.6759]
[1727207581849,14.62,148.08,148.0,2.6759]
[1727207582038,14.62,148.08,148.01,1.3137]
[1727207583049,14.62,148.06,148.0,2.6759]
[1727207583546,17.9971,148.06,148.01,3.3781]
[1727207584044,3.3774,148.05,148.0,6.0542]
[1727207584341,17.9974,148.05,148.0,6.0542]
[1727207585041,14.62,148.05,148.0,2.6759]
[1727207585237,17.9975,148.05,148.0,2.6759]
[1727207585441,17.9975,148.05,148.0,6.0542]
[1727207585736,3.3776,148.04,148.0,2.6759]
[1727207586328,3.3779,148.03,147.99,3.3787]
[1727207588045,14.62,148.05,147.96,2.7059]
[1727207588540,3.3779,148.03,147.96,2.7059]
[1727207588745,3.3779,148.03,147.98,3.3787]
[1727207589143,14.62,148.01,147.96,2.7059]
[1727207589646,17.998,148.03,147.98,3.3789]
[1727207589848,14.62,148.03,147.98,3.3789]
[1727207590039,14.62,148.01,147.96,2.7059]
[1727207590836,3.3786,148.0,147.96,6.0853]
[1727207591043,14.62,148.01,147.96,2.7059]
[1727207591739,3.3787,148.0,147.96,6.0853]
[1727207591939,14.62,147.99,147.92,14.62]
[1727207592151,14.62,147.97,147.9,4.1126]
[1727207592748,3.3789,147.99,147.95,3.3794]
[1727207593247,21.3728,148.1,147.9,4.1126]
[1727207593248,6.7528,148.1,147.9,4.1126]
[1727207593440,14.62,148.1,148.0,14.62]
[1727207593638,3.44354293,148.18,148.07,14.62]
[1727207593845,14.62,148.17,148.07,14.62]
[1727207595255,14.62,148.17,148.09,14.62]
[1727207595553,14.62,148.17,148.07,14.62]
[1727207595750,3.35023664,148.18,148.07,14.62]
[1727207595951,14.62,148.17,148.07,14.62]
[1727207596254,17.99998647,148.17,148.07,14.62]
[1727207596441,14.62,148.17,148.07,14.62]
[1727207596645,3.3749,148.16,148.11,3.3759]
[1727207597644,3.3749,148.16,148.07,14.62]
[1727207598050,3.3749,148.16,148.11,3.3759]
[1727207599153,14.62,148.17,148.1,3.3761]
[1727207599452,14.62,148.17,148.07,14.62]
[1727207599952,3.3752,148.15,148.1,3.376]
[1727207600156,14.62,148.17,148.1,3.376]
[1727207600350,14.62,148.14,148.04,14.62]
[1727207600544,14.62,148.17,148.03,2.8041]
[1727207600545,14.62,148.12,148.03,2.8041]
[1727207600746,14.62,148.1,148.01,1.3206]
[1727207601254,14.62,148.07,148.01,1.3206]
[1727207602859,17.997,148.07,148.03,3.3778]
[1727207603455,3.4096621,148.09,148.04,3.3775]
[1727207603456,17.9965,148.09,148.04,3.3775]
[1727207603756,1.3581,148.12,148.01,15.9406]
[1727207603952,3.3764,148.1,148.05,3.3772]
[1727207604759,3.3764,148.1,148.06,3.3771]
[1727207605655,14.62,148.11,148.07,3.3767]
[1727207605656,3.3761,148.11,148.07,3.3767]
[1727207605853,1.2119,148.13,148.04,14.62]
[1727207606053,14.62,148.15,148.04,14.62]
[1727207606460,3.3754,148.14,148.06,14.62]
[1727207607652,17.9952,148.15,148.06,14.62]
[1727207608053,17.9952,148.15,148.11,3.3759]
[1727207608356,3.3752,148.15,148.11,3.3759]
[1727207609060,3.3749,148.16,148.06,1.306]
[1727207609363,25.9087,148.17,148.06,1.306]
[1727207610066,3.3753,148.14,148.11,3.3758]
[1727207614264,3.3756,148.13,148.1,3.3761]
[1727207614565,3.3756,148.13,148.06,1.306]
[1727207614767,3.3756,148.13,148.1,3.376]
[1727207615065,3.3752,148.15,148.06,1.306]
[1727207615762,3.3754,148.14,148.11,3.3758]
[1727207617963,250.68242275,148.23,148.06,1.306]
[1727207618368,250.68242275,148.23,148.13,23.36]
[1727207618568,250.68242275,148.23,148.16,23.36]
[1727207619068,250.68242275,148.23,148.18,3.3742]
[1727207619368,250.68242275,148.23,148.16,23.36]
[1727207619563,250.68242275,148.23,148.22,3.3735]
[1727207619768,250.68242275,148.23,148.19,23.36]
[1727207620068,250.68242275,148.23,148.15,1.3169]
[1727207620268,250.68242275,148.23,148.16,23.36]
[1727207620658,250.68242275,148.23,148.18,3.3744]
[1727207622071,250.68242275,148.23,148.16,23.36]
[1727207625661,250.68242275,148.23,148.22,3.3735]
[1727207626359,250.68242275,148.23,148.19,23.36]
[1727207626962,250.68242275,148.23,148.22,3.3735]
[1727207628360,250.68242275,148.23,148.21,3.3736]
[1727207628564,250.68242275,148.23,148.16,23.36]
[1727207629671,250.68242275,148.23,148.22,3.3735]
[1727207634466,250.68242275,148.23,148.17,14.58]
[1727207635563,250.68242275,148.23,148.2,3.3738]
[1727207635760,250.68242275,148.23,148.17,14.58]
[1727207636067,250.68242275,148.23,148.15,15.8969]
[1727207636864,3.3735,148.22,148.15,15.8969]
[1727207637265,250.68242275,148.23,148.15,15.8969]
[1727207637460,3.3736,148.22,148.15,15.8969]
[1727207637871,250.68242275,148.23,148.19,3.3742]
[1727207638370,250.68242275,148.23,148.19,3.374]
[1727207639478,250.68242275,148.23,148.2,3.3739]
[1727207640261,250.68242275,148.23,148.15,15.8969]
[1727207640464,14.58,148.21,148.14,2.6806]
[1727207640667,14.58,148.17,148.03,66.4497276]
[1727207640868,14.58,148.15,148.06,16.0003]
[1727207641081,14.58,148.15,148.06,19.35545894]
[1727207641378,14.58,148.15,148.06,16.0003]
[1727207641581,14.58,148.15,148.06,19.32507718]
[1727207641784,254.09328159,148.23,148.06,4.74507718]
[1727207642003,14.58,148.2,148.11,14.58]
[1727207642473,3.3738,148.21,148.15,14.58]
[1727207642668,250.68242275,148.23,148.15,14.58]
[1727207643175,250.68242275,148.23,148.16,3.3748]
[1727207643374,3.3739,148.21,148.16,3.3748]
[1727207643580,3.3739,148.21,148.15,14.58]
[1727207643975,3.3736,148.22,148.15,14.58]
[1727207644483,3.3736,148.22,148.19,3.3742]
[1727207644680,250.68242275,148.23,148.19,14.58]
[1727207645570,254.05582275,148.23,148.19,17.9542]
[1727207646174,3.3735,148.22,148.18,17.9543]
[1727207646379,250.68242275,148.23,148.14,15.9785]
[1727207646380,265.26242275,148.23,148.14,15.9785]
[1727207646577,250.68242275,148.23,148.16,14.58]
[1727207647381,254.05582275,148.23,148.19,3.3741]
[1727207647886,254.05582275,148.23,148.18,3.3743]
[1727207648086,3.3735,148.22,148.18,3.3743]
[1727207648271,250.68242275,148.23,148.17,3.3746]
[1727207648478,250.68242275,148.23,148.14,1.3985]
[1727207648479,265.26242275,148.23,148.13,15.939]
[1727207648682,3.3741,148.2,148.13,15.939]
[1727207648878,14.58,148.21,148.13,15.939]
[1727207649084,3.3748,148.17,148.12,1.4148]
[1727207649381,1.2143,148.22,148.12,1.4148]
[1727207649382,14.58,148.2,148.12,1.4148]
[1727207649580,14.58,148.18,148.09,14.58]
[1727207650179,3.3752,148.15,148.11,3.3758]
[1727207650393,14.58,148.16,148.08,1.3226]
[1727207650584,14.58,148.16,148.09,3.3763]
[1727207650893,3.3755,148.14,148.09,3.3763]
[1727207651079,14.58,148.16,148.09,3.3763]
[1727207651275,3.3746,148.18,148.07,1.3966]
[1727207651483,14.58,148.21,148.12,14.58]
[1727207651885,3.374,148.2,148.14,14.58]
[1727207652089,1.2143,148.22,148.14,14.58]
[1727207652386,3.3737,148.21,148.17,3.3745]
[1727207652594,1.2143,148.22,148.12,14.58]
[1727207652776,1.2143,148.22,148.14,14.58]
[1727207653877,1.2143,148.22,148.09,1.3226]
[1727207653878,250.68242275,148.23,148.17,14.58]
[1727207654290,3.3739,148.21,148.16,3.3747]
[1727207654499,250.68242275,148.23,148.14,23.33]
[1727207654982,254.05572275,148.23,148.16,23.33]
[1727207655383,250.68242275,148.23,148.19,3.374]
[1727207656587,250.68242275,148.23,148.15,1.409]
[1727207657184,3.3741,148.2,148.16,3.3747]
[1727207657687,3.3741,148.2,148.15,1.409]
[1727207657688,3.3737,148.21,148.17,3.3746]
[1727207658090,250.68242275,148.23,148.15,1.409]
[1727207658478,250.68242275,148.23,148.14,1.3861]
[1727207658688,3.3742,148.2,148.16,3.3748]
[1727207658890,250.68242275,148.23,148.12,23.33]
[1727207659293,3.3741,148.2,148.12,23.33]
[1727207659884,3.3737,148.21,148.12,23.33]
[1727207660289,3.3739,148.2,148.16,3.3747]
[1727207660496,250.68242275,148.23,148.12,23.33]
[1727207660693,274.01242275,148.23,148.12,23.33]
[1727207660894,3.3741,148.2,148.15,3.375]
[1727207661087,274.01242275,148.23,148.15,3.375]
[1727207661290,3.3746,148.18,148.14,3.3753]
[1727207661594,3.3746,148.18,148.09,1.3055]
[1727207661595,277.36567371,148.23,148.1,23.33]
[1727207661799,3.3739,148.21,148.16,3.3747]
[1727207662292,3.3739,148.21,148.12,23.33]
[1727207663593,3.3739,148.21,148.17,3.3746]
[1727207663792,3.3739,148.21,148.12,23.33]
[1727207663793,274.01242275,148.23,148.12,23.33]
[1727207663987,0.88692035,148.24,148.22,23.33]
[1727207664188,1.80166887,148.26,148.14,23.33]
[1727207664404,1.80166887,148.26,148.2,23.33]
[1727207665487,1.80166887,148.26,148.18,3.39620731]
[1727207665488,1.80166887,148.26,148.22,23.33]
[1727207665895,1.80166887,148.26,148.25,3.3728]
[1727207667392,1.80166887,148.26,148.23,1.3282]
[1727207668095,1.80166887,148.26,148.25,3.3728]
[1727207668299,1.80166887,148.26,148.25,26.7028]
[1727207668804,7.43254423,148.31,148.27,3.3723]
[1727207670205,7.43254423,148.31,148.26,3.3725]
[1727207670404,7.43254423,148.31,148.23,1.3282]
[1727207670897,7.43254423,148.31,148.26,23.33]
[1727207672006,7.43254423,148.31,148.28,3.3721]
[1727207672913,7.43254423,148.31,148.29,3.3719]
[1727207673809,7.43254423,148.31,148.26,23.33]
[1727207674615,7.43254423,148.31,148.29,3.3719]
[1727207674804,7.43254423,148.31,148.24,23.33]
[1727207675313,7.43254423,148.31,148.26,23.33]
[1727207675813,7.43254423,148.31,148.29,3.3719]
[1727207677012,7.43254423,148.31,148.28,3.3721]
[1727207677203,7.43254423,148.31,148.26,23.33]
[1727207678814,7.43254423,148.31,148.29,3.3719]
[1727207679409,7.43254423,148.31,148.3,3.3717]
[1727207679920,3.09794423,148.31,148.3,4.7218]
[1727207680518,3.09794423,148.31,148.24,14.58]
[1727207681305,4.42274423,148.31,148.26,14.58]
[1727207681510,3.09794423,148.31,148.26,14.58]
[1727207681713,3.09794423,148.31,148.28,14.58]
[1727207682515,3.09794423,148.31,148.25,23.33]
[1727207683313,3.09794423,148.31,148.3,3.3717]
[1727207686512,3.09794423,148.31,148.26,1.3856]
[1727207687010,3.09794423,148.31,148.22,2.7215]
[1727207687210,3.09794423,148.31,148.22,27.4901]
[1727207687617,3.09794423,148.31,148.26,3.3725]
[1727207688016,3.09794423,148.31,148.22,27.4901]
[1727207688527,6.46954423,148.31,148.22,27.4901]
[1727207688825,3.09794423,148.31,148.22,27.4901]
[1727207689223,3.09794423,148.31,148.25,3.3726]
[1727207689224,6.46944423,148.31,148.25,3.3726]
[1727207689429,6.46944423,148.31,148.22,27.4901]
[1727207689626,3.09794423,148.31,148.3,3.3717]
[1727207689826,3.09794423,148.31,148.25,23.33]
[1727207690325,3.09794423,148.31,148.22,27.4901]
[1727207690931,3.3717,148.3,148.25,3.3726]
[1727207691829,3.09794423,148.31,148.25,23.33]
[1727207692022,3.09794423,148.31,148.28,23.33]
[1727207692434,3.09794423,148.31,148.3,3.3717]
[1727207692728,3.09794423,148.31,148.28,23.33]
[1727207692924,3.09794423,148.31,148.25,23.33]
[1727207693116,3.09794423,148.31,148.22,4.1601]
[1727207693321,3.09794423,148.31,148.26,23.33]
[1727207693525,3.09794423,148.31,148.29,3.3718]
[1727207693722,3.09794423,148.31,148.26,23.33]
[1727207694127,3.09794423,148.31,148.3,3.3717]
[1727207695325,3.09794423,148.31,148.29,3.3718]
[1727207696840,3.09794423,148.31,148.3,3.3717]
[1727207700243,3.09794423,148.31,148.28,3.3721]
[1727207700448,26.42794423,148.31,148.13,80.94]
[1727207700653,26.42794423,148.31,148.19,1.3408]
[1727207701038,26.42794423,148.31,148.2,23.33]
[1727207701238,3.3718,148.3,148.25,3.3726]
[1727207701445,3.09794423,148.31,148.22,23.33]
[1727207702943,23.33,148.28,148.2,1.3412]
[1727207703137,3.09794423,148.31,148.15,23.33]
[1727207703138,23.33,148.26,148.15,23.33]
[1727207703340,3.09794423,148.31,148.24,3.373]
[1727207703548,24.6855,148.3,148.17,23.33]
[1727207704055,3.3724,148.27,148.17,23.33]
[1727207704241,24.6855,148.3,148.17,23.33]
[1727207704445,23.33,148.28,148.15,26.69583796]
[1727207704947,23.33,148.28,148.17,23.33]
[1727207705144,3.3724,148.27,148.17,23.33]
[1727207705750,23.33,148.28,148.2,3.3739]
[1727207706252,23.33,148.26,148.15,23.33]
[1727207707037,3.3729,148.25,148.15,23.33]
[1727207707457,3.3738,148.21,148.16,3.3748]
[1727207707647,1.3867,148.24,148.14,1.3408]
[1727207707844,1.3901,148.23,148.14,1.3408]
[1727207708051,1.3901,148.23,148.18,3.3743]
[1727207708257,1.3901,148.23,148.14,1.3408]
[1727207708651,1.3901,148.23,148.15,23.33]
[1727207708950,1.3867,148.24,148.15,24.7406]
[1727207709156,1.3867,148.24,148.17,23.33]
[1727207709344,1.3901,148.27,148.17,23.33]
[1727207709545,1.3901,148.27,148.19,23.33]
[1727207709752,2.7725,148.3,148.21,23.33]
[1727207710050,1.398,148.3,148.21,23.33]
[1727207710254,1.398,148.3,148.26,3.3725]
[1727207710454,3.09794423,148.31,148.24,23.33]
[1727207710962,3.09794423,148.31,148.27,3.3722]
[1727207711251,3.09794423,148.31,148.24,23.33]
[1727207711459,3.09794423,148.31,148.28,3.372]
[1727207711666,3.09794423,148.31,148.24,23.33]
[1727207712557,3.09794423,148.31,148.28,3.372]
[1727207712961,3.09794423,148.31,148.24,23.33]
[1727207713547,3.09794423,148.31,148.27,23.33]
[1727207714052,3.09794423,148.31,148.3,3.3717]
[1727207714662,3.09794423,148.31,148.28,3.3721]
[1727207714863,3.09794423,148.31,148.24,24.6864]
[1727207715660,3.09794423,148.31,148.26,23.33]
[1727207715847,3.09794423,148.31,148.3,3.3717]
[1727207716854,0.93054423,148.31,148.3,3.3717]
[1727207717058,2.95703061,148.32,148.31,3.3714]
[1727207717248,6.17653805,148.33,148.31,23.33]
[1727207717448,6.17653805,148.33,148.3,1.3869]
[1727207717653,6.17653805,148.33,148.27,23.33]
[1727207718256,6.17653805,148.33,148.31,3.3713]
[1727207718763,6.17653805,148.33,148.32,3.3712]
[1727207719369,6.17653805,148.33,148.26,1.3869]
[1727207719956,6.17653805,148.33,148.3,3.3716]
[1727207720163,6.17653805,148.33,148.26,1.3869]
[1727207720450,6.17653805,148.33,148.24,23.33]
[1727207720651,7.50993805,148.33,148.24,23.33]
[1727207721762,10.88103805,148.33,148.29,3.3719]
[1727207721960,10.88103805,148.33,148.24,23.33]
[1727207722456,10.88103805,148.33,148.28,3.372]
[1727207723268,3.3715,148.31,148.25,14.56]
[1727207723467,3.3715,148.31,148.23,14.56]
[1727207723666,14.56,148.32,148.23,14.56]
[1727207724361,14.56,148.3,148.21,14.56]
[1727207724766,14.56,148.28,148.22,3.3733]
[1727207725170,14.56,148.26,148.19,80.94]
[1727207726265,1.3317,148.26,148.19,80.94]
[1727207726565,3.3732,148.24,148.19,84.314]
[1727207726763,3.3732,148.24,148.15,26.013]
[1727207727066,3.3732,148.24,148.19,3.374]
[1727207727861,1.3317,148.26,148.19,3.374]
[1727207728061,1.3317,148.26,148.18,3.3743]
[1727207728271,3.3733,148.23,148.18,3.3743]
[1727207728663,1.3317,148.26,148.18,3.3743]
[1727207728863,3.3735,148.22,148.15,26.013]
[1727207729762,3.3733,148.23,148.18,3.3744]
[1727207729957,1.3317,148.26,148.15,26.013]
[1727207730265,23.33,148.23,148.13,1.3302]
[1727207730458,23.33,148.23,148.11,30.99691193]
[1727207730665,23.33,148.25,148.13,23.33]
[1727207730859,23.33,148.25,148.14,6.6408185]
[1727207731061,23.33,148.25,148.13,23.33]
[1727207731263,23.33,148.25,148.14,6.64599205]
[1727207731487,3.3736,148.22,148.18,3.3744]
[1727207731864,3.3733,148.23,148.18,3.3744]
[1727207732060,23.33,148.25,148.17,3.3745]
[1727207732261,23.33,148.22,148.11,30.99691193]
[1727207732471,3.3742,148.19,148.11,30.99691193]
[1727207732671,23.33,148.22,148.16,3.3748]
[1727207733066,23.33,148.2,148.11,12.46352637]
[1727207733265,1.3941,148.19,148.11,7.66691193]
[1727207733467,3.3747,148.17,148.11,7.66691193]
[1727207733667,4.1919,148.19,148.11,7.66691193]
[1727207734370,23.33,148.18,148.11,7.66691193]
[1727207734769,3.375,148.16,148.12,3.3756]
[1727207734965,23.33,148.18,148.12,3.3756]
[1727207735275,3.3748,148.17,148.13,3.3754]
[1727207735574,3.3748,148.17,148.11,7.66691193]
[1727207735777,3.375,148.16,148.12,3.3756]
[1727207736074,23.33,148.18,148.11,7.66691193]
[1727207736876,23.33,148.15,148.11,7.66691193]
[1727207737176,3.3756,148.13,148.11,7.66691193]
[1727207737674,23.33,148.13,148.08,3.3766]
[1727207737979,3.3767,148.08,147.91,84.40703483]
[1727207738178,23.33,148.07,147.97,2.7029]
[1727207739063,26.7069,148.07,148.03,3.3776]
[1727207739473,3.3769,148.07,147.97,26.0329]